[Event "Championnat d'Europe de Blitz"]
[Date "2024.12.09"]
[White "Costachi, Mihnea"]
[Black "Muradli, Mahammad"]
[WhiteElo "2464"]
[BlackElo "2588"]
[Round "13.12"]
[Result "0-1"]
[TimeControl "180+2"]

1. d4 {[%clk 00:03:03]} Nf6 {[%emt 00:00:03] [%clk 00:03:04]} 2. c4 {[%clk
00:03:04]} g6 {[%clk 00:03:05]} 3. Nc3 {[%emt 00:00:01] [%clk 00:03:05]} Bg7
{[%clk 00:03:07]} 4. e4 {[%clk 00:03:06]} O-O {[%emt 00:00:02] [%clk 00:03:07]}
5. Be2 {[%emt 00:00:02] [%clk 00:03:07]} d6 {[%clk 00:03:08]} 6. Bg5 {[%emt
00:00:01] [%clk 00:03:07]} c5 {[%emt 00:00:12] [%clk 00:02:59]} 7. d5 {[%emt
00:00:01] [%clk 00:03:08]} e6 {[%clk 00:03:00]} 8. Nf3 {[%emt 00:00:01] [%clk
00:03:09]} h6 {[%emt 00:00:05] [%clk 00:02:57]} 9. Be3 {[%clk 00:03:09]} exd5
{[%emt 00:00:04] [%clk 00:02:56]} 10. cxd5 {[%emt 00:00:05] [%clk 00:03:06]} Bg4
{[%emt 00:00:04] [%clk 00:02:54]} 11. O-O {[%emt 00:00:20] [%clk 00:02:47]} Bxf3
{[%emt 00:00:06] [%clk 00:02:50]} 12. Bxf3 {[%emt 00:00:01] [%clk 00:02:48]} a6
{[%emt 00:00:02] [%clk 00:02:50]} 13. a4 {[%emt 00:00:01] [%clk 00:02:49]} Re8
{[%emt 00:00:02] [%clk 00:02:51]} 14. Re1 {[%emt 00:00:16] [%clk 00:02:34]} Nbd7
{[%emt 00:00:02] [%clk 00:02:51]} 15. h3 {[%emt 00:00:02] [%clk 00:02:34]} c4
{[%emt 00:00:06] [%clk 00:02:48]} 16. Bd4 {[%emt 00:00:15] [%clk 00:02:21]} Qc7
{[%emt 00:00:09] [%clk 00:02:42]} 17. Qd2 {[%emt 00:00:40] [%clk 00:01:43]} Nc5
{[%emt 00:00:03] [%clk 00:02:40]} 18. Bxf6 {[%emt 00:00:06] [%clk 00:01:38]}
Bxf6 {[%clk 00:02:42]} 19. Qxh6 {[%emt 00:00:01] [%clk 00:01:38]} Nd3 {[%clk
00:02:43]} 20. Re2 {[%emt 00:00:40] [%clk 00:01:01]} Nxb2 {[%emt 00:00:01] [%clk
00:02:44]} 21. e5 {[%emt 00:00:01] [%clk 00:01:03]} Bxe5 {[%clk 00:02:46]} 22.
Ne4 {[%emt 00:00:07] [%clk 00:00:57]} Bg7 {[%emt 00:00:01] [%clk 00:02:47]} 23.
Qh4 {[%emt 00:00:06] [%clk 00:00:53]} Nd3 {[%emt 00:00:03] [%clk 00:02:46]} 24.
Nf6+ {[%emt 00:00:06] [%clk 00:00:48]} Bxf6 {[%emt 00:00:01] [%clk 00:02:47]}
25. Qxf6 {[%emt 00:00:01] [%clk 00:00:49]} Ne5 {[%emt 00:00:21] [%clk 00:02:28]}
26. Be4 {[%emt 00:00:06] [%clk 00:00:46]} Qe7 {[%emt 00:00:01] [%clk 00:02:29]}
27. Qf4 {[%emt 00:00:09] [%clk 00:00:38]} b5 {[%emt 00:00:01] [%clk 00:02:30]}
28. h4 {[%emt 00:00:05] [%clk 00:00:35]} Kg7 {[%emt 00:00:25] [%clk 00:02:08]}
29. h5 {[%emt 00:00:08] [%clk 00:00:29]} Rh8 {[%emt 00:00:01] [%clk 00:02:09]}
30. hxg6 {[%emt 00:00:04] [%clk 00:00:27]} fxg6 {[%emt 00:00:01] [%clk
00:02:10]} 31. Qg3 {[%emt 00:00:04] [%clk 00:00:25]} Qf6 {[%emt 00:00:03] [%clk
00:02:08]} 32. Rb1 {[%emt 00:00:07] [%clk 00:00:20]} Rh4 {[%emt 00:00:05] [%clk
00:02:06]} 33. axb5 {[%emt 00:00:05] [%clk 00:00:17]} Rah8 {[%clk 00:02:07]} 34.
f3 {[%emt 00:00:06] [%clk 00:00:14]} Nd3 {[%emt 00:00:13] [%clk 00:01:55]} 35.
Bxd3 {[%emt 00:00:12] [%clk 00:00:04]} Qd4+ {[%clk 00:01:56]} 36. Kf1 {[%emt
00:00:03] [%clk 00:00:03]} Rh1# {[%emt 00:00:01] [%clk 00:01:57]} 0-1

[Site "Europe Echecs"]

[Event "Championnat d'Europe de Blitz"]
[Date "2024.12.09"]
[White "Bernadskiy, Vitaliy"]
[Black "Dardha, Daniel"]
[WhiteElo "2546"]
[BlackElo "2639"]
[Round "13.13"]
[Result "0-1"]
[TimeControl "180+2"]

1. e4 {[%emt 00:19:15] [%clk 00:03:03]} c5 {[%emt 00:00:02] [%clk 00:03:03]} 2.
Nc3 {[%emt 00:00:02] [%clk 00:03:03]} Nc6 {[%emt 00:00:02] [%clk 00:03:03]} 3.
Nf3 {[%emt 00:00:01] [%clk 00:03:04]} e5 {[%emt 00:00:08] [%clk 00:02:57]} 4.
Bc4 {[%emt 00:00:02] [%clk 00:03:04]} Be7 {[%emt 00:00:01] [%clk 00:02:58]} 5.
d3 {[%emt 00:00:01] [%clk 00:03:05]} d6 {[%emt 00:00:02] [%clk 00:02:58]} 6. a4
{[%emt 00:00:07] [%clk 00:03:00]} Nf6 {[%emt 00:00:14] [%clk 00:02:46]} 7. Bg5
{[%emt 00:00:01] [%clk 00:03:00]} O-O {[%emt 00:00:05] [%clk 00:02:44]} 8. Bxf6
{[%emt 00:00:03] [%clk 00:02:59]} Bxf6 {[%emt 00:00:01] [%clk 00:02:45]} 9. Nd5
{[%emt 00:00:02] [%clk 00:03:00]} Be6 {[%emt 00:00:24] [%clk 00:02:23]} 10. c3
{[%emt 00:00:02] [%clk 00:03:00]} a6 {[%emt 00:00:12] [%clk 00:02:12]} 11. O-O
{[%emt 00:00:14] [%clk 00:02:48]} g6 {[%emt 00:00:04] [%clk 00:02:10]} 12. Ne3
{[%emt 00:00:02] [%clk 00:02:48]} Bd7 {[%emt 00:00:09] [%clk 00:02:03]} 13. Qd2
{[%emt 00:00:20] [%clk 00:02:31]} Bg7 {[%emt 00:00:10] [%clk 00:01:55]} 14. b4
{[%emt 00:00:03] [%clk 00:02:29]} cxb4 {[%emt 00:00:02] [%clk 00:01:55]} 15.
cxb4 {[%emt 00:00:02] [%clk 00:02:30]} Kh8 {[%emt 00:00:01] [%clk 00:01:55]} 16.
b5 {[%emt 00:00:19] [%clk 00:02:13]} Na5 {[%emt 00:00:05] [%clk 00:01:51]} 17.
Qb4 {[%emt 00:00:07] [%clk 00:02:09]} f5 {[%emt 00:00:44] [%clk 00:01:10]} 18.
Qxd6 {[%emt 00:00:36] [%clk 00:01:35]} fxe4 {[%emt 00:00:03] [%clk 00:01:08]}
19. Nxe5 {[%emt 00:00:33] [%clk 00:01:04]} Be8 {[%emt 00:00:02] [%clk 00:01:08]}
20. Qe6 {[%emt 00:00:18] [%clk 00:00:48]} Qf6 {[%emt 00:00:23] [%clk 00:00:47]}
21. Qxf6 {[%emt 00:00:15] [%clk 00:00:35]} Bxf6 {[%emt 00:00:02] [%clk
00:00:48]} 22. d4 {[%emt 00:00:02] [%clk 00:00:35]} Nxc4 {[%emt 00:00:03] [%clk
00:00:46]} 23. N3xc4 {[%emt 00:00:02] [%clk 00:00:35]} axb5 {[%emt 00:00:03]
[%clk 00:00:46]} 24. axb5 {[%emt 00:00:07] [%clk 00:00:30]} Bxb5 {[%emt
00:00:06] [%clk 00:00:42]} 25. Rac1 {[%emt 00:00:14] [%clk 00:00:17]} Bxe5
{[%emt 00:00:22] [%clk 00:00:22]} 26. dxe5 {[%emt 00:00:04] [%clk 00:00:16]} Ra4
{[%emt 00:00:03] [%clk 00:00:21]} 27. Nb6 {[%emt 00:00:11] [%clk 00:00:06]} Ra6
{[%emt 00:00:02] [%clk 00:00:22]} 28. Rfe1 {[%emt 00:00:06] [%clk 00:00:00]} 0-1

[Site "Europe Echecs"]

[Event "Championnat d'Europe de Blitz"]
[Date "2024.12.09"]
[White "Grigoriants, Sergey"]
[Black "Kazakouski, Valery"]
[WhiteElo "2542"]
[BlackElo "2567"]
[Round "13.14"]
[Result "1-0"]
[TimeControl "180+2"]

1. e4 {[%clk 00:03:03]} e5 {[%emt 00:00:02] [%clk 00:03:03]} 2. Nf3 {[%emt
00:00:01] [%clk 00:03:03]} Nc6 {[%emt 00:00:01] [%clk 00:03:04]} 3. Bb5 {[%emt
00:00:08] [%clk 00:02:57]} Bc5 {[%emt 00:00:03] [%clk 00:03:03]} 4. c3 {[%emt
00:00:05] [%clk 00:02:54]} Nf6 {[%emt 00:00:01] [%clk 00:03:04]} 5. d3 {[%emt
00:00:10] [%clk 00:02:46]} d6 {[%emt 00:00:09] [%clk 00:02:58]} 6. O-O {[%emt
00:00:04] [%clk 00:02:43]} O-O {[%emt 00:00:05] [%clk 00:02:56]} 7. Nbd2 {[%emt
00:00:02] [%clk 00:02:42]} a6 {[%emt 00:00:04] [%clk 00:02:54]} 8. Bxc6 {[%emt
00:00:28] [%clk 00:02:17]} bxc6 {[%emt 00:00:01] [%clk 00:02:55]} 9. Re1 {[%emt
00:00:04] [%clk 00:02:15]} Re8 {[%emt 00:00:12] [%clk 00:02:45]} 10. Nf1 {[%emt
00:00:06] [%clk 00:02:11]} h6 {[%emt 00:00:06] [%clk 00:02:41]} 11. Be3 {[%emt
00:00:04] [%clk 00:02:08]} Bb6 {[%emt 00:00:02] [%clk 00:02:41]} 12. Ng3 {[%emt
00:00:14] [%clk 00:01:57]} Be6 {[%emt 00:00:17] [%clk 00:02:25]} 13. h3 {[%emt
00:00:18] [%clk 00:01:41]} Qb8 {[%emt 00:00:02] [%clk 00:02:25]} 14. Qc2 {[%emt
00:00:06] [%clk 00:01:38]} a5 {[%emt 00:00:04] [%clk 00:02:23]} 15. b3 {[%emt
00:00:06] [%clk 00:01:33]} c5 {[%emt 00:00:07] [%clk 00:02:18]} 16. d4 {[%emt
00:00:09] [%clk 00:01:26]} cxd4 {[%emt 00:00:07] [%clk 00:02:13]} 17. cxd4
{[%clk 00:01:27]} Bd7 {[%emt 00:00:28] [%clk 00:01:48]} 18. dxe5 {[%emt
00:00:10] [%clk 00:01:19]} dxe5 {[%emt 00:00:02] [%clk 00:01:48]} 19. Qc3 {[%emt
00:00:07] [%clk 00:01:14]} Bxe3 {[%emt 00:00:20] [%clk 00:01:30]} 20. Rxe3
{[%clk 00:01:14]} c6 {[%emt 00:00:02] [%clk 00:01:30]} 21. Rd1 {[%emt 00:00:05]
[%clk 00:01:11]} Qb4 {[%emt 00:00:11] [%clk 00:01:21]} 22. Qc2 {[%emt 00:00:29]
[%clk 00:00:44]} a4 {[%emt 00:00:07] [%clk 00:01:16]} 23. Red3 {[%emt 00:00:14]
[%clk 00:00:32]} axb3 {[%emt 00:00:09] [%clk 00:01:09]} 24. axb3 {[%clk
00:00:33]} Ra7 {[%emt 00:00:07] [%clk 00:01:04]} 25. Rd6 {[%emt 00:00:05] [%clk
00:00:30]} Be6 {[%emt 00:00:24] [%clk 00:00:42]} 26. Qxc6 {[%emt 00:00:10] [%clk
00:00:23]} Qxb3 {[%emt 00:00:16] [%clk 00:00:27]} 27. Nxe5 {[%emt 00:00:10]
[%clk 00:00:16]} Qb2 {[%emt 00:00:14] [%clk 00:00:12]} 28. Nh5 {[%emt 00:00:08]
[%clk 00:00:12]} Rc8 {[%emt 00:00:09] [%clk 00:00:06]} 29. Nxf6+ {[%emt
00:00:02] [%clk 00:00:11]} gxf6 {[%clk 00:00:07]} 30. Rd8+ {[%emt 00:00:04]
[%clk 00:00:10]} Rxd8 {[%emt 00:00:02] [%clk 00:00:08]} 31. Rxd8+ {[%emt
00:00:01] [%clk 00:00:10]} Kh7 {[%emt 00:00:02] [%clk 00:00:07]} 32. Nd3 {[%emt
00:00:04] [%clk 00:00:08]} Ra1+ {[%emt 00:00:06] [%clk 00:00:04]} 33. Kh2 {[%clk
00:00:09]} Qb1 {[%emt 00:00:03] [%clk 00:00:03]} 34. Qe8 {[%emt 00:00:04] [%clk
00:00:07]} Qg1+ {[%emt 00:00:03] [%clk 00:00:03]} 35. Kg3 {[%clk 00:00:07]} 1-0

[Site "Europe Echecs"]

[Event "Championnat d'Europe de Blitz"]
[Date "2024.12.09"]
[White "Van Foreest, Lucas"]
[Black "Fridman, Daniel"]
[WhiteElo "2520"]
[BlackElo "2571"]
[Round "13.15"]
[Result "1-0"]
[TimeControl "180+2"]

1. Nf3 {[%emt 00:02:15] [%clk 00:03:02]} d5 {[%clk 00:03:03]} 2. g3 {[%clk
00:03:04]} Nd7 {[%emt 00:00:02] [%clk 00:03:03]} 3. d4 {[%clk 00:03:05]} Nb6
{[%emt 00:00:01] [%clk 00:03:04]} 4. a4 {[%clk 00:03:06]} a5 {[%clk 00:03:05]}
5. b3 {[%clk 00:03:08]} Bf5 {[%emt 00:00:01] [%clk 00:03:05]} 6. Nh4 {[%clk
00:03:09]} Be4 {[%emt 00:00:04] [%clk 00:03:04]} 7. f3 {[%clk 00:03:11]} Bg6
{[%emt 00:00:01] [%clk 00:03:05]} 8. Bg2 {[%emt 00:00:05] [%clk 00:03:08]} e6
{[%emt 00:00:01] [%clk 00:03:05]} 9. Nxg6 {[%emt 00:00:02] [%clk 00:03:09]} hxg6
{[%emt 00:00:01] [%clk 00:03:06]} 10. O-O {[%emt 00:00:07] [%clk 00:03:05]} Nf6
{[%emt 00:00:03] [%clk 00:03:05]} 11. e4 {[%emt 00:00:01] [%clk 00:03:06]} c6
{[%emt 00:00:06] [%clk 00:03:00]} 12. c3 {[%emt 00:00:02] [%clk 00:03:06]} Be7
{[%emt 00:00:01] [%clk 00:03:00]} 13. Be3 {[%emt 00:00:03] [%clk 00:03:06]} Qc7
{[%emt 00:00:08] [%clk 00:02:54]} 14. Nd2 {[%emt 00:00:02] [%clk 00:03:06]} Rd8
{[%emt 00:00:20] [%clk 00:02:36]} 15. Qe2 {[%emt 00:00:01] [%clk 00:03:07]} Nbd7
{[%emt 00:00:15] [%clk 00:02:22]} 16. Rac1 {[%emt 00:00:01] [%clk 00:03:09]} e5
{[%emt 00:00:15] [%clk 00:02:09]} 17. dxe5 {[%emt 00:00:05] [%clk 00:03:06]}
Nxe5 {[%emt 00:00:02] [%clk 00:02:09]} 18. f4 {[%emt 00:00:03] [%clk 00:03:06]}
Neg4 {[%emt 00:00:07] [%clk 00:02:03]} 19. e5 {[%emt 00:00:01] [%clk 00:03:07]}
Nxe3 {[%emt 00:00:02] [%clk 00:02:03]} 20. exf6 {[%clk 00:03:08]} Bc5 {[%emt
00:00:01] [%clk 00:02:04]} 21. fxg7 {[%emt 00:00:17] [%clk 00:02:53]} Rg8 {[%emt
00:00:01] [%clk 00:02:04]} 22. Rfe1 {[%emt 00:01:00] [%clk 00:01:55]} Kd7 {[%emt
00:00:11] [%clk 00:01:55]} 23. b4 {[%emt 00:00:14] [%clk 00:01:44]} Ba7 {[%emt
00:00:04] [%clk 00:01:53]} 24. Bh3+ {[%emt 00:00:24] [%clk 00:01:21]} Nf5+
{[%emt 00:00:30] [%clk 00:01:25]} 25. Kh1 {[%emt 00:00:11] [%clk 00:01:12]} Rxg7
{[%emt 00:00:10] [%clk 00:01:18]} 26. Nb3 {[%emt 00:00:02] [%clk 00:01:13]} Kc8
{[%emt 00:00:13] [%clk 00:01:06]} 27. Nxa5 {[%emt 00:00:08] [%clk 00:01:08]} Rh7
{[%emt 00:00:03] [%clk 00:01:04]} 28. Bxf5+ {[%emt 00:00:02] [%clk 00:01:08]}
gxf5 {[%emt 00:00:01] [%clk 00:01:05]} 29. Nb3 {[%emt 00:00:03] [%clk 00:01:07]}
Rdh8 {[%emt 00:00:04] [%clk 00:01:02]} 30. Rc2 {[%emt 00:00:14] [%clk 00:00:56]}
Qd6 {[%emt 00:00:19] [%clk 00:00:45]} 31. Qd3 {[%emt 00:00:04] [%clk 00:00:55]}
Rh5 {[%emt 00:00:06] [%clk 00:00:39]} 32. Re5 {[%emt 00:00:04] [%clk 00:00:54]}
Qg6 {[%emt 00:00:24] [%clk 00:00:18]} 33. Rg2 {[%emt 00:00:04] [%clk 00:00:51]}
Qg4 {[%emt 00:00:03] [%clk 00:00:16]} 34. Qe2 {[%emt 00:00:04] [%clk 00:00:50]}
Qg6 {[%emt 00:00:08] [%clk 00:00:09]} 35. b5 {[%emt 00:00:02] [%clk 00:00:51]}
Kb8 {[%emt 00:00:03] [%clk 00:00:07]} 36. Re8+ {[%emt 00:00:10] [%clk 00:00:44]}
Rxe8 {[%emt 00:00:02] [%clk 00:00:08]} 37. Qxe8+ {[%clk 00:00:45]} Kc7 {[%clk
00:00:09]} 38. Qe7+ {[%clk 00:00:47]} Kc8 {[%emt 00:00:06] [%clk 00:00:05]} 39.
Na5 {[%emt 00:00:04] [%clk 00:00:45]} Qg4 {[%emt 00:00:04] [%clk 00:00:00]} 1-0

[Site "Europe Echecs"]

[Event "Championnat d'Europe de Blitz"]
[Date "2024.12.09"]
[White "Larkin, Vladyslav"]
[Black "Kadric, Denis"]
[WhiteElo "2449"]
[BlackElo "2544"]
[Round "13.16"]
[Result "0-1"]
[TimeControl "180+2"]

1. e4 {[%clk 00:03:03]} d6 {[%emt 00:00:03] [%clk 00:03:04]} 2. d4 {[%clk
00:03:04]} Nf6 {[%clk 00:03:05]} 3. Nc3 {[%clk 00:03:05]} e5 {[%emt 00:00:02]
[%clk 00:03:06]} 4. Nf3 {[%emt 00:00:04] [%clk 00:03:03]} Nbd7 {[%emt 00:00:01]
[%clk 00:03:07]} 5. h3 {[%emt 00:00:04] [%clk 00:03:00]} c6 {[%emt 00:00:01]
[%clk 00:03:09]} 6. a4 {[%emt 00:00:02] [%clk 00:03:00]} Be7 {[%clk 00:03:09]}
7. g4 {[%emt 00:00:04] [%clk 00:02:58]} h6 {[%emt 00:00:09] [%clk 00:03:03]} 8.
Rg1 {[%emt 00:00:04] [%clk 00:02:55]} Qc7 {[%emt 00:00:15] [%clk 00:02:50]} 9.
g5 {[%emt 00:00:03] [%clk 00:02:54]} hxg5 {[%emt 00:00:03] [%clk 00:02:50]} 10.
Nxg5 {[%emt 00:00:01] [%clk 00:02:55]} Qb6 {[%emt 00:00:48] [%clk 00:02:04]} 11.
dxe5 {[%emt 00:00:10] [%clk 00:02:46]} Nxe5 {[%emt 00:00:03] [%clk 00:02:04]}
12. a5 {[%emt 00:00:03] [%clk 00:02:46]} Qc7 {[%emt 00:00:10] [%clk 00:01:55]}
13. f4 {[%emt 00:00:05] [%clk 00:02:42]} Ng6 {[%emt 00:00:01] [%clk 00:01:56]}
14. Be3 {[%emt 00:00:11] [%clk 00:02:33]} d5 {[%emt 00:00:31] [%clk 00:01:28]}
15. exd5 {[%emt 00:00:13] [%clk 00:02:21]} O-O {[%emt 00:00:07] [%clk 00:01:24]}
16. Qd2 {[%emt 00:00:36] [%clk 00:01:46]} Bb4 {[%emt 00:00:04] [%clk 00:01:23]}
17. d6 {[%emt 00:01:21] [%clk 00:00:27]} Bxd6 {[%emt 00:00:03] [%clk 00:01:22]}
18. Nge4 {[%emt 00:00:07] [%clk 00:00:22]} Nxe4 {[%emt 00:00:21] [%clk
00:01:03]} 19. Nxe4 {[%clk 00:00:23]} Be7 {[%emt 00:00:01] [%clk 00:01:04]} 20.
Bd3 {[%emt 00:00:08] [%clk 00:00:17]} Bf5 {[%emt 00:00:08] [%clk 00:00:57]} 21.
O-O-O {[%emt 00:00:04] [%clk 00:00:16]} Rad8 {[%emt 00:00:09] [%clk 00:00:50]}
22. Qc3 {[%emt 00:00:02] [%clk 00:00:17]} Rfe8 {[%emt 00:00:08] [%clk 00:00:43]}
23. Qb3 {[%emt 00:00:07] [%clk 00:00:12]} Qxa5 {[%emt 00:00:13] [%clk 00:00:32]}
24. Kb1 {[%clk 00:00:14]} Qd5 {[%emt 00:00:10] [%clk 00:00:24]} 25. Qxd5 {[%emt
00:00:09] [%clk 00:00:07]} cxd5 {[%emt 00:00:04] [%clk 00:00:22]} 26. Nc3 {[%emt
00:00:03] [%clk 00:00:06]} Bxd3 {[%emt 00:00:17] [%clk 00:00:07]} 27. Rxd3
{[%clk 00:00:07]} Bf6 {[%clk 00:00:09]} 28. Nxd5 {[%emt 00:00:01] [%clk
00:00:07]} Rxd5 {[%clk 00:00:10]} 29. Rxd5 {[%clk 00:00:08]} Rxe3 {[%emt
00:00:01] [%clk 00:00:12]} 30. f5 {[%emt 00:00:02] [%clk 00:00:08]} Nf4 {[%emt
00:00:01] [%clk 00:00:13]} 31. Rd7 {[%emt 00:00:02] [%clk 00:00:08]} Re7 {[%emt
00:00:02] [%clk 00:00:13]} 32. Rd8+ {[%emt 00:00:01] [%clk 00:00:08]} Kh7 {[%clk
00:00:15]} 33. Ra8 {[%emt 00:00:01] [%clk 00:00:09]} a6 {[%emt 00:00:02]} 34.
Rd1 {[%clk 00:00:09]} g6 {[%emt 00:00:04] [%clk 00:00:15]} 35. fxg6+ {[%emt
00:00:01] [%clk 00:00:10]} fxg6 {[%emt 00:00:03] [%clk 00:00:14]} 36. Rf8 {[%emt
00:00:01] [%clk 00:00:10]} Nh5 {[%emt 00:00:09] [%clk 00:00:07]} 37. Rb8 {[%emt
00:00:05] [%clk 00:00:08]} Bg7 {[%emt 00:00:02] [%clk 00:00:07]} 38. Rdd8 {[%emt
00:00:01] [%clk 00:00:09]} Nf4 {[%clk 00:00:08]} 39. h4 {[%emt 00:00:02] [%clk
00:00:08]} Ng2 {[%clk 00:00:10]} 40. h5 {[%emt 00:00:04] [%clk 00:00:07]} gxh5
{[%clk 00:00:11]} 41. Rd5 {[%clk 00:00:08]} Kg6 {[%emt 00:00:03] [%clk
00:00:11]} 42. Rc8 {[%emt 00:00:04] [%clk 00:00:06]} Nf4 {[%emt 00:00:03] [%clk
00:00:10]} 43. Rd1 {[%emt 00:00:03] [%clk 00:00:06]} Bf6 {[%emt 00:00:05] [%clk
00:00:07]} 44. Rc4 {[%clk 00:00:07]} Ne6 {[%emt 00:00:02] [%clk 00:00:07]} 45.
Rg1+ {[%clk 00:00:08]} Ng5 {[%clk 00:00:09]} 46. Rc8 {[%emt 00:00:02] [%clk
00:00:08]} Rh7 {[%emt 00:00:07]} 47. Rg8+ {[%clk 00:00:05]} Kf7 {[%clk
00:00:10]} 48. R8xg5 {[%emt 00:00:02] [%clk 00:00:06]} Bxg5 {[%clk 00:00:11]}
49. Rxg5 {[%emt 00:00:02] [%clk 00:00:07]} h4 {[%clk 00:00:13]} 50. Rg2 {[%emt
00:00:04] [%clk 00:00:05]} h3 {[%clk 00:00:14]} 51. Rh2 {[%clk 00:00:06]} Kf6
{[%emt 00:00:01] [%clk 00:00:16]} 52. Kc1 {[%emt 00:00:02] [%clk 00:00:06]} Kf5
{[%clk 00:00:17]} 53. Kd2 {[%clk 00:00:07]} Kf4 {[%clk 00:00:19]} 54. Ke2 {[%emt
00:00:02] [%clk 00:00:08]} Kg3 {[%emt 00:00:01] [%clk 00:00:20]} 55. Rh1 {[%clk
00:00:09]} h2 {[%emt 00:00:01] [%clk 00:00:22]} 56. c4 {[%emt 00:00:03] [%clk
00:00:08]} Kg2 {[%emt 00:00:01] [%clk 00:00:23]} 0-1

[Site "Europe Echecs"]